{"text_format":"3","workbook":"xlsx","n_sheets":5,"sheets":["表1","表2","Sheet1","总汇总表","20250912"],"not_rendered":{"defined_names":6},"read":"whole","date_system":"1900"}

{"sheet":"表1","index":0,"n_rows":41,"n_cols":35,"rows_kept":41,"hidden":true,"merged":[[0,0,0,34],[1,0,3,0],[1,1,3,1],[1,2,3,2],[1,3,2,6],[1,7,3,7],[1,8,1,15],[1,17,3,17],[1,18,3,18],[1,19,3,19],[1,20,3,20],[1,21,1,32],[1,33,3,33],[1,34,3,34],[2,8,2,12],[2,14,2,15],[2,21,2,32],[15,0,17,0],[37,0,37,1],[38,0,38,1],[40,0,40,1],[40,8,40,10]]}
["2019年度西藏开发投资集团有限公司招聘需求计划表"]
["序号","集团公司各部门/所属各单位名称","编制      人数","原编制岗位设置情况",{"$nulls":3},"文件依据","现有人员（含外包）总数",{"$nulls":7},{"$f":"N3+Q3","v":0},"预估年末离职人数","明年度需求人数","需求岗位名称","年度需求人数原因A.扩大编制      B.缺编补员      C.业务发展      D.其他原因","年度人员需求计划表",{"$nulls":11},"任职要求","备注"]
[{"$nulls":8},"正式员工人数",{"$nulls":5},"服务外包人数",{"$nulls":6},"需求日期"]
[{"$nulls":3},"中层    （5岗及以上）","主管    （6岗）","专责    （7岗-9岗）","业务员  （10-12岗）",null,"中层    （5岗及以上）","主管    （6岗）","专责    （7岗-9岗）","业务员  （10-12岗）","男","女","男","女",{"$nulls":5},"1月","2月","3月","4月","5月","6月","7月","8月","9月","10月","11月","12月"]
[1,"集团公司办公室                    （含四川分公司）",12,2,3,3,4,"藏开投（2015）3号"]
[2,"集团公司工程技术部",12,3,3,6,null,"藏开投（2015）3号"]
[3,"集团公司财务部",9,2,2,2,3,"藏开投（2015）3号"]
[4,"集团公司规划发展部",11,3,2,5,1,"藏开投（2015）3号"]
[5,"集团公司安全环保监察部",5,1,2,2,null,"藏开投（2015）3号"]
[6,"集团公司计划合同部",6,1,1,2,2,"藏开投（2015）3号"]
[7,"集团公司人力资源部",7,1,1,3,2,"藏开投（2015）3号"]
[8,"集团公司政治工作部",3,1,1,1,null,"藏开投（2015）3号"]
[9,"集团公司监察审计部",3,1,1,1,null,"藏开投（2015）3号"]
[10,"集团公司资产运营部",4,1,1,2,null,"藏开投（2015）3号"]
[null,"集团本部合计",{"$f":"SUM(C5:C14)","v":72},{"$f":"SUM(D5:D14)","v":16},{"$f":"SUM(E5:E14)","v":17},{"$f":"SUM(F5:F14)","v":27},{"$f":"SUM(G5:G14)","v":12},null,{"$f":"SUM(I5:I14)","v":0},0,0,0,0,0,0,0,0,0,0,0,0,0,0,0,0,0,0,0,0,0,0,0,0]
[1,"西藏开投置业有限公司"]
[null,"西藏开投昌达实业有限公司"]
[null,"西藏开投物业管理有限责任公司"]
[2,"西藏开投南亚投资有限公司"]
[3,"西藏开投金河流域水电开发有限公司"]
[4,"西藏开投瓦托电站"]
[5,"西藏开投金桥水电开发有限公司"]
[6,"金桥电厂"]
[7,"西藏开投集团果多水电有限公司"]
[8,"西藏开发投资集团有限公司觉巴水电厂"]
[9,"西藏开投嘎堆水电开发有限公司"]
[10,"西藏开投曲孜卡水电开发有限公司"]
[11,"西藏开投江达水电站筹备处"]
[12,"西藏开投海通水泥有限公司"]
[13,"西藏开发投资集团有限公司札达阿青水电分公司"]
[null,"西藏开发投资集团有限公司青藏油气管道分公司"]
[null,"应急救援基地"]
[14,"西藏开投拉林铁路迁改工程建设指挥部"]
[15,"西藏开发投资集团有限公司八宿县新能源分公司"]
[16,"西藏开投昌达能源有限公司"]
[17,"西藏开投资本管理有限公司"]
[18,"西藏开投邦锦花园酒店管理有限责任公司",{"$nulls":6},2,null,null,4]
["下属单位合计",null,{"$f":"SUM(C16:C37)","v":0},{"$f":"SUM(D16:D37)","v":0},0,0,0,0,2,0,0,4,0,0,0,0,0,0,0,0,{"$f":"SUM(U16:U37)","v":0},0,0,0,0,0,0,0,0,0,0,0,0,0]
["集团公司汇总",null,{"$f":"C15+C38","v":72},{"$f":"D15+D38","v":16},17,27,12,0,2,0,0,4,0,0,0,0,0,0,0,0,0,0,0,0,0,0,0,0,0,0,0,0,0,0]
[]
["部门（单位）盖章："]

{"sheet":"表2","index":1,"n_rows":29,"n_cols":28,"rows_kept":29,"hidden":true,"merged":[[0,0,0,27],[1,0,3,0],[1,1,3,1],[1,2,1,13],[1,14,1,25],[1,26,3,26],[1,27,3,27],[2,2,2,3],[2,4,2,7],[2,8,2,11],[2,12,3,12],[2,13,3,13],[2,14,2,15],[2,16,2,19],[2,20,2,23],[2,24,3,24],[2,25,3,25],[4,0,6,0],[4,1,6,1],[9,0,10,0],[14,2,14,12],[14,14,14,24],[26,2,26,12],[26,14,26,24],[27,0,27,12],[27,14,27,24],[28,0,28,2],[28,11,28,13]]}
["2019年西藏开投集团需求人员基本情况表"]
["序号","集团公司各部门/所属各单位单位名称","社会招聘",{"$nulls":11},"校园招聘",{"$nulls":11},"总数","备注"]
[null,null,"性别",null,"学历",{"$nulls":3},"职称",{"$nulls":3},"专业","总数","性别",null,"学历",{"$nulls":3},"职称",{"$nulls":3},"专业","总数"]
[null,null,"男","女","研究生","本科","大专","中专","正高级","高级","中级","初级",null,null,"男","女","研究生","本科","大专","中专","正高级","高级","中级","初级"]
[1,"办公室",1,null,1,{"$nulls":7},"法务",1,{"$nulls":12},1,"建议拟任职务及岗级为主管（6-4）"]
[null,null,1,null,null,1,{"$nulls":6},"信息化管理",1,{"$nulls":12},1,"1、大学专业为计算机软硬件相关专业\n2、建议拟任职务及岗级为专责（8-2）"]
[null,null,1,null,null,1,{"$nulls":6},"文案",1,{"$nulls":12},1,"建议尽量集团内部调动"]
[2,"工程技术部",1,null,null,1,{"$nulls":4},1,null,"工业与房建（土木工程）",1,{"$nulls":12},1]
[3,"规划发展部",1,null,null,1,{"$nulls":4},1,null,"金融/经济/投资管理",1,{"$nulls":12},1]
[4,"计划合同部",1,null,null,1,{"$nulls":4},1,null,"工程造价或工程管理",1,{"$nulls":12},1,"工作经验8-12年，本科及以上学历，中级以上职称"]
[null,"集团所属单位合同管理口",8,{"$nulls":3},8,{"$nulls":4},8,"工程造价或工程管理",8,{"$nulls":12},8,"性别不限，工作经验5-15年，大专及以上学历，初级及以上职称"]
[5,"监察审计部",1,null,null,1,{"$nulls":3},1,null,null,"财务、审计、工程造价及相关专业",1,{"$nulls":12},1,"1.性别不限，男性优先。2.全日制统招本科以上学历，12年以上相关工作经验，有大型国有企业、电力企业相关工作经验，国家注册审计师资格优先。\n"]
[6,"政工部",2,null,null,2,{"$nulls":6},"不限",2,1,null,null,1,{"$nulls":6},"不限",1,3]
[7,"资产运营部",1,null,null,1,{"$nulls":4},1,null,"电气相关专业",1,2,null,null,2,{"$nulls":6},"理工科",2,3]
[null,"合计","社会招聘（正式员工）",{"$nulls":10},{"$f":"SUM(N5:N14)","v":18},"校园招聘（正式员工）",{"$nulls":10},{"$f":"SUM(Z5:Z14)","v":3},{"$f":"SUM(AA5:AA14)","v":21}]
[1,"札达阿青水电分公司安全环保监察部",2,null,null,2,{"$nulls":4},1,1,"水利水电",2,{"$nulls":11},0,2]
[2,"札达阿青水电分公司综合部",2,1,null,2,1,{"$nulls":5},"管理学、计算机、汉语言文学",3,{"$nulls":11},0,3]
[3,"札达阿青水电分公司计划合同部",2,null,null,2,{"$nulls":4},2,null,"造价管理",2,{"$nulls":11},0,2]
[4,"札达阿青水电分公司工程技术部",1,null,null,1,{"$nulls":4},1,null,"水机或电气自动化（有一定的物资管理经验）",1,1,1,null,2,{"$nulls":6},"水利水电建筑工程、档案管理",2,3]
[5,"札达阿青水电分公司机电物资部",1,null,null,1,{"$nulls":4},1,null,"水利水电",1,{"$nulls":11},0,1]
[6,"海通水泥公司",32,10,null,24,18,{"$nulls":3},19,23,"生产部经理、工艺工程师、矿山工程师、统计兼文员、电气工程师、安环部经理、质检部经理、质量工程师、化验分析、物理检验、荧光检测、党群管理、网络管理、档案管理、销售会计、出纳、过磅员、销售员、售后服务工程师、合同管理兼统计、票据员\n\n",42,{"$nulls":12},42,"目前，只定了海通水泥项目外包运营模式，具体定员还未定，2019年需求人员数只是初步预计。"]
[7,"果多公司运维部",{"$nulls":12},6,{"$nulls":3},6,{"$nulls":5},"水动相关专业2人；电气相关专业4人。",6,6]
[8,"果多公司财务部",{"$nulls":12},1,null,null,1,{"$nulls":6},"会计相关专业",1,1]
[null,"果多工程部",1,{"$nulls":3},1,{"$nulls":5},"工程管理",1,{"$nulls":12},1]
[9,"西藏开投置业有限公司",4,{"$nulls":3},4,{"$nulls":3},4,null,"建筑工程 土建结构工程，工业与民用建筑工程，岩土工程类相关专业；物业管理与服务相关专业",4,{"$nulls":12},4]
[10,"邦锦花园酒店",3,2,null,5,{"$nulls":6},"旅游/酒店管理/工程/人力资源/行政/财务/市场营销/计算机/信息/安保/烹饪等专业",5,3,2,null,5,{"$nulls":6},"旅游/酒店管理/外语/市场营销/空乘/计算机/烹饪等专业",5,10]
[11,"合计","社会招聘（正式员工）",{"$nulls":10},{"$f":"SUM(N16:N26)","v":61},"校园招聘（正式员工）",{"$nulls":10},{"$f":"SUM(Z16:Z26)","v":14},{"$f":"SUM(AA16:AA26)","v":75}]
["全集团汇总——社会招聘（正式员工）",{"$nulls":12},{"$f":"N15+N27","v":79},"全集团汇总——校园招聘（正式员工）",{"$nulls":10},{"$f":"Z15+Z27","v":17},{"$f":"AA15+AA27","v":96}]
["部门（单位）盖章：",{"$nulls":10},"部门（单位）负责人签字：",{"$nulls":12},"制表人:"]

{"sheet":"Sheet1","index":2,"n_rows":39,"n_cols":35,"rows_kept":39,"hidden":true,"merged":[[0,0,0,34],[1,0,3,0],[1,1,3,1],[1,2,3,2],[1,3,2,6],[1,7,3,7],[1,8,1,14],[1,16,3,16],[1,17,3,17],[1,18,3,18],[1,19,3,19],[1,20,3,20],[1,21,1,32],[1,33,3,33],[1,34,3,34],[2,8,2,12],[2,21,2,32],[35,0,35,1],[36,0,36,1],[38,0,38,1],[38,8,38,10]]}
["2019年度西藏开发投资集团有限公司招聘需求计划表"]
["序号","集团公司各部门/所属各单位名称","编制      人数","原编制岗位设置情况",{"$nulls":3},"文件依据","现有人员（含外包）总数",{"$nulls":7},"预估年末离职人数","2019年度需求人数","需求岗位名称","年度需求人数原因A.扩大编制      B.缺编补员      C.业务发展      D.其他原因","人员需求方式   A.社会招聘      B.校园招聘      C.内部调配      D.其他方式","2019年度人员需求计划表",{"$nulls":11},"任职要求","备注"]
[{"$nulls":8},"正式员工人数",{"$nulls":5},"服务外包人数",{"$nulls":6},"需求人员到岗日期"]
[{"$nulls":3},"中层    （5岗及以上）","主管    （6岗）","专责    （7岗-9岗）","业务员  （10-12岗）",null,"中层    （5岗及以上）","主管    （6岗）","专责    （7岗-9岗）","业务员  （10-12岗）","男","女","男","女",{"$nulls":5},"1月","2月","3月","4月","5月","6月","7月","8月","9月","10月","11月","12月"]
[1,"集团公司办公室                    （含四川分公司）",{"$f":"D5+E5+F5+G5","v":12},2,3,3,4,"藏开投（2015）3号"]
[2,"集团公司工程技术部",{"$f":"D6+E6+F6+G6","v":12},3,3,6,null,"藏开投（2015）3号"]
[3,"集团公司财务部",9,2,2,2,3,"藏开投（2015）3号"]
[4,"集团公司规划发展部",11,3,2,5,1,"藏开投（2015）3号"]
[5,"集团公司安全环保监察部",5,1,2,2,null,"藏开投（2015）3号"]
[6,"集团公司计划合同部",6,1,1,2,2,"藏开投（2015）3号"]
[7,"集团公司人力资源部",7,1,1,3,2,"藏开投（2015）3号"]
[8,"集团公司政治工作部",3,1,1,1,null,"藏开投（2015）3号"]
[9,"集团公司监察审计部",3,1,1,1,null,"藏开投（2015）3号"]
[10,"集团公司资产运营部",4,1,1,2,null,"藏开投（2015）3号"]
[null,"集团本部合计",{"$f":"SUM(C5:C14)","v":72},{"$f":"SUM(D5:D14)","v":16},{"$f":"SUM(E5:E14)","v":17},{"$f":"SUM(F5:F14)","v":27},{"$f":"SUM(G5:G14)","v":12},null,{"$f":"SUM(I5:I14)","v":0},0,0,0,0,0,0,0,0,0,0,0,null,{"$f":"SUM(V5:V14)","v":0},0,0,0,0,0,0,0,0,0,0,0]
[1,"西藏开投置业有限公司                （含西藏开投昌达实业有限公司、西藏开投物业管理有限责任公司）",20,{"$nulls":4},"2015年38期人资专题会议纪要、西藏开投人（2015）37号"]
[2,"西藏开投南亚投资有限公司",20,{"$nulls":4},"2017年第20期人资专题会议纪要"]
[3,"西藏开投金河流域水电开发有限公司",26,{"$nulls":4},"2015年38期人资专题会议纪要、西藏开投人（2015）36号未注明编制人数"]
[4,"西藏开投瓦托电站",19,{"$nulls":4},"2018年第28期人资专题会议纪要，人资（2018）42号"]
[5,"西藏开投金桥水电开发有限公司",22,{"$nulls":4},"2015年38期人资专题会议纪要、西藏开投人（2015）37号未注明编制人数"]
[6,"金桥电厂",20,{"$nulls":4},"2018年第28期人资专题会议纪要"]
[7,"西藏开投集团果多水电有限公司",50,{"$nulls":4},"人资（2018）10号"]
[8,"西藏开发投资集团有限公司觉巴水电厂",{"$nulls":5},"人资（2018）11号        未注明编制人数"]
[9,"西藏开投嘎堆水电开发有限公司",24,{"$nulls":4},"2016年第28期人资专题会会议纪要"]
[10,"西藏开投海通水泥有限公司",25,{"$nulls":4},"2017年第20期人资专题会议纪要"]
[11,"西藏开发投资集团有限公司札达阿青水电分公司",20,{"$nulls":4},"西藏开投人（2017）33号"]
[12,"西藏开发投资集团有限公司青藏油气管道分公司",{"$nulls":5},"西藏开投人（2016）42号 未注明编制人数"]
[13,"应急救援基地",16,{"$nulls":4},"人资（2018）5号"]
[14,"西藏开投拉林铁路迁改工程建设指挥部",{"$nulls":5},"西藏开投人（2015）22号"]
[15,"西藏开投曲孜卡水电开发有限公司"]
[16,"西藏开投江达水电站筹备处",{"$nulls":5},"西藏开投人（2017）22号未注明编制人数"]
[17,"西藏开发投资集团有限公司八宿县新能源分公司"]
[18,"西藏开投昌达能源有限公司",{"$nulls":5},"人资（2018）15号      未注明编制人数"]
[19,"西藏开投资本管理有限公司"]
[20,"西藏开投邦锦花园酒店管理有限责任公司",{"$nulls":6},2,null,null,4]
["下属单位合计",null,{"$f":"SUM(C16:C35)","v":262},0,0,0,0,0,2,0,0,4,0,0,0,0,0,0,0,0,null,{"$f":"SUM(V16:V35)","v":0},0,0,0,0,0,0,0,0,0,0,0,0]
["集团公司汇总",null,{"$f":"C15+C36","v":334},16,17,27,12,0,2,0,0,4,0,0,0,0,0,0,0,0,null,{"$f":"V15+V36","v":0},0,0,0,0,0,0,0,0,0,0,0,0]
[]
["部门（单位）盖章："]

{"sheet":"总汇总表","index":3,"n_rows":0,"n_cols":0,"rows_kept":0,"hidden":true}

{"sheet":"20250912","index":4,"n_rows":25,"n_cols":9,"rows_kept":25,"merged":[[0,0,0,6],[5,0,6,0],[5,1,6,1],[8,0,9,0],[8,1,9,1],[11,0,13,0],[11,1,13,1],[16,0,19,0],[16,1,19,1],[20,0,23,0],[20,1,23,1],[24,0,24,1]]}
["西藏开发投资集团有限公司2026年度校园招聘需求计划表"]
["序号","招聘部门\n（单位）","岗位名称 ","招聘\n人数","任职资格要求","主要工作职责","备注"]
[1,"集团公司\n科技创新部","信息化管理岗",1,"1.年龄：硕士研究生28周岁以下，博士研究生32周岁以下；\n2.学历：全日制研究生及以上学历；\n3.专业：电气类、计算机类、通信与信息系统类等相关专业；\n4.工作经验：有相关岗位实习经验者优先考虑；\n5.职称（职/执业资格）：具有相关职（执）业资格者优先考虑；\n6.其他要求：具备良好的职业道德，文字功底，诚实守信，廉洁奉公，保守公司商业机密，工作认真负责，严谨细致，有较强的责任心和敬业精神，能够承受一定工作压力。身体健康，能够适应高原工作环境；\n7.特别优秀者可适当放宽条件。","1.负责公司信息化建设、管理及计算机信息安全网络管理；\n2.负责公司已有系统的优化研究、功能规划、实施；\n3.负责公司数字化转型、智能建造等的规划、实施、管理以及后续功能优化的研究与应用；\n4.负责公司电站智能监测、智慧运维技术等的研究及科研项目组织实施；\n5.完成领导交办的其他工作。"]
[2,"集团公司\n计划合同部","计划合同岗",1,"1.年龄：硕士研究生28周岁以下，博士研究生32周岁以下；\n2.学历：全日制研究生及以上学历；\n3.专业：工程造价、工程管理、土木工程等相关专业；\n4.工作经验：有大型能源、建筑工程或基础设施项目造价工作实习经验者优先考虑；\n5.职称（职/执业资格）：具有相关专业职称或职（执）业资格者优先考虑；\n6.其他要求：具备良好的职业道德，诚实守信，廉洁奉公，保守公司商业机密，工作认真负责，严谨细致，有较强的责任心和敬业精神，能够承受一定工作压力。具有良好的沟通协调能力和团队合作精神，能够与项目团队成员、供应商、审计单位等各方进行有效地沟通和协作。身体健康，能够适应高原工作环境；\n7.特别优秀者可适当放宽条件。","1.合同管理：参与公司各类工程合同的起草、谈判、签订和修订工作，确保合同条款清晰、准确，符合法律法规和公司利益。负责合同的日常管理，建立合同台账，跟踪合同执行情况，及时发现和解决合同履行过程中出现的问题。对合同执行过程中的变更、索赔等事项进行审核和管理，收集和整理相关资料，为合同结算和纠纷处理提供依据；\n2.造价管控：负责工程项目的投资估算、设计概算、施工图预算、招标控制价、投标报价的编制和审核工作，确保造价文件的准确性和合理性。参与工程项目的成本控制，制定成本控制目标和计划，对项目成本进行动态监控和分析，及时发现成本偏差并提出调整措施。负责工程项目的竣工结算工作，审核施工单位提交的结算资料，与施工单位进行结算谈判，完成结算审核报告；\n3.招投标管理：参与工程招标工作，负责编制招标文件中的商务条款和工程量清单，协助确定招标控制价，参与投标工作，负责编制投标文件中的商务部分，进行成本分析和报价策略制定，确保投标报价具有竞争力。负责收集和整理招投标相关资料，建立招投标档案，为后续项目提供参考；\n4.数据分析与报告：收集、整理和分析工程造价相关数据，建立工程造价数据库，为公司项目投资决策、成本控制和预算编制提供数据支持。定期编制工程造价分析报告，对工程项目的造价执行情况进行总结和分析，提出改进建议和措施；\n5.其他工作：协助解决工程项目建设过程中的造价纠纷和争议，提供专业的技术支持和解决方案。参与公司内部的造价培训和技术交流活动，提高团队整体业务水平；\n6.完成领导交办的其他工作。"]
[3,"集团公司\n资本运营部","资本运营管理岗",1,"1.年龄：硕士研究生28周岁以下，博士研究生32周岁以下；\n2.学历：全日制研究生及以上学历；\n3.专业：工商管理、金融学、会计学、经济学、财务管理等相关专业；\n4.职称（职/执业资格）：具有CPA、CFA及国家法律职业资格或相关专业职称或职（执）业资格者优先考虑；\n5.工作经验：有相关资本运营实习经验者优先；\n6.其他要求：一定程度熟悉资本市场运作规则，具有财务建模与数据分析的能力，具备商务谈判、风险研判及跨部门协调能力；保密意识强，责任心突出，能承受高强度工作压力。身体健康，能够适应高原工作环境；\n7.特别优秀者可适当放宽条件。","1.资本运作与配置：对接投资机构、金融机构拓展融资渠道，参与制定股权/债权融资方案并执行融资目标，协助开展上市规划、资本运营等公司重要事宜的规划及落地工作；\n2.投资决策支持：参与投资项目筛选、判断，推动项目投资落地；协助完成尽职调查与可行性分析，收集相关材料，完成相关资料编制；\n3.风险评估与防控：识别市场、信用及流动性风险，参与制定风控策略并建立应急预案；确保资本运作符合《公司法》及国资监管要求；\n4.资源协同优化：加强跨部门协作，参与并购重组后的业务整合与效能提升；加强市场研究与策略制定，分析行业趋势及竞争格局，调整投资策略以实现资本增值最大化；\n5.其他工作：完成部门日常事务处理及相关资料的整理归档等基础工作；\n6.完成领导交办的其他工作。"]
[4,"西藏开投金河流域水电开发有限公司","电气二次专业技术人员",1,"1.年龄：本科24周岁以下，研究生28周岁以下；\n2.学历：全日制本科及以上学历；\n3.专业：电气工程及其自动化专业；\n4.工作经验：无要求。有变电站、发电厂电气二次系统等相关实习经验者优先；\n5.职称（职/执业资格）：无要求。具有相关职（执）业资格者优先考虑；\n6.其他要求：掌握电气二次系统专业技能及相关原理，熟悉电气二次相关标准规范。具备良好的沟通协调能力，能够与不同专业背景的人员合作，共同推进项目进展。工作严谨细致，责任心强，对技术问题有钻研精神，能承受较大工作压力。具备较强的学习能力和创新意识，能够快速掌握新技术、新设备，适应行业发展需求。身体健康，能够适应高原地区工作环境，可根据项目需要接受出差安排；\n7.特别优秀者可适当放宽条件。\n","1.项目设计与规划：参与电力项目电气二次部分的前期规划和可行性研究，提供专业技术建议。根据项目要求，完成电气二次系统设计，包括保护配置、自动化系统设计、通信系统设计等，确保设计方案满足系统可靠性、安全性和经济性要求；\n2.工程施工管理：在施工过程中，为电气二次施工提供技术支持，监督施工质量，确保施工符合设计图纸和相关标准规范。参与施工方案的编制和审核，针对施工中的技术难题提出解决方案，确保施工顺利进行。协调与电气一次、土建等专业的施工配合，及时解决施工中的交叉问题，保证工程进度。负责电气二次设备的安装调试工作，组织开展设备的单体调试、系统联调以及与一次设备的联合调试，确保设备正常运行；\n3.设备运行维护：制定电气二次设备的运行维护计划和操作规程，定期对设备进行巡检、维护和保养，确保设备处于良好运行状态。负责电气二次设备的状态监测和数据分析，及时发现设备潜在故障隐患，采取有效地预防措施。在设备发生故障时，迅速进行故障诊断和排查，组织修复工作，尽快恢复设备正常运行，并对故障原因进行分析总结；\n4.技术支持与创新：参与为公司内部其他部门提供电气二次专业技术支持，解答技术问题，协助解决相关技术难题。参与公司内部的技术培训和交流活动，分享专业知识和经验，提升团队整体技术水平；\n5.文档管理：负责收集、整理和归档电气二次专业相关的技术文件、图纸、报告、设备资料等，建立完整的技术档案。编写项目实施过程中的技术总结报告、设备运行维护报告等，为后续项目和设备管理提供参考依据；\n6.完成领导交办的其他工作。","指定电气工程及其自动化专业。"]
[null,null,"机械专业技术人员",1,"1.年龄：本科24周岁以下，研究生28周岁以下；\n2.学历：全日制本科及以上学历；\n3.专业：热能与动力工程(水动方向)等相关专业；\n4.工作经验：有相关岗位实习经验者优先考虑；\n5.职称（职/执业资格）：具有相关职（执）业资格者优先考虑；\n6.其他要求：专业技能：掌握机械设计原理、机械制造工艺、机械传动、机械结构等专业知识，了解机械行业相关标准、规范和法规。具备良好的沟通协调能力，能够与不同专业背景人员合作，共同推进项目开展，包括与电气、土建等专业协同作业。工作严谨细致，责任心强，对技术问题有钻研精神，能承受较大工作压力。身体健康，能够适应高原地区工作环境；\n7.特别优秀者可适当放宽条件。","1.项目设计与规划：参与电力项目或其他相关项目中机械部分的前期规划和可行性研究，从机械专业角度提供技术建议和方案构思，评估项目在机械方面的可行性和经济性；\n2.工程施工管理：在施工过程中，为机械施工提供全方位技术指导，监督施工质量，确保施工严格按照设计图纸、工艺要求和相关标准规范进行，对施工质量进行把控和验收。参与施工方案的编制和审核，针对施工中可能出现的机械技术难题，提前制定解决方案，保障施工顺利进行；参与施工进度计划的制定和调整，确保机械施工部分按时完成。协调与电气、土建等其他专业的施工配合，参与解决施工中的交叉问题；\n3.设备运行维护：制定机械设备的运行维护计划和操作规程，明确设备的日常巡检、定期保养、维修周期和方法，确保设备处于良好运行状态，延长设备使用寿命；\n4.技术支持与创新：参与为公司内部其他部门提供机械专业技术支持，解答技术问题，协助解决生产、运营过程中遇到的机械技术难题，提供技术方案和建议。跟踪机械行业技术发展动态，积极引进先进的机械技术、设备和工艺，推动公司技术创新和升级，提高公司在行业内的竞争力。参与公司内部的技术培训和交流活动，分享专业知识和经验，提升团队整体技术水平；\n5.文档管理：负责收集、整理和归档机械专业相关的技术文件、图纸、报告、设备资料等，建立完整的技术档案，包括设备的采购合同、安装调试报告、维修记录、技术改造方案等。编写项目实施过程中的技术总结报告、设备运行维护报告等，对项目和设备管理过程中的经验教训进行总结，为后续项目和设备管理提供参考依据，促进技术知识的传承和积累；\n6.完成领导交办的其他工作。","指定热能与动力工程(水动方向)专业。"]
[5,"西藏开投金河流域水电开发有限公司","大坝（水工）管理岗",1,"1.年龄：本科24周岁以下，研究生28周岁以下；\n2.学历：全日制本科及以上学历；\n3.专业：水利水电工程、水工结构工程等相关专业；\n4.工作经验：有相关岗位实习经验者优先考虑；\n5.职称（职/执业资格）：无要求。具有相关职（执）业资格者优先考虑；\n6.其他要求：熟悉大坝水工管理相关制度流程及行业标准。具备较强的学习能力和创新意识，关注国内外水电行业的最新技术和发展动态，参与相关研究和创新工作，提出改进建议，提高水电站大坝的运行效率和安全性。身体健康，能够适应高原地区工作环境；\n7.特别优秀者可适当放宽条件。","1.大坝运行管理：负责水电站大坝的日常运行管理工作。包括监测和调度大坝的水位、流量和泄洪情况，及时采取措施保证大坝的运行安全，确保大坝的正常运转；\n2.水电设备维护：负责对水电站大坝和相关设备进行日常检修、保养和维护。定期巡检水电设备，发现问题及时进行维修，确保水电设备的正常运行；\n3.应急抢修工作：在发生设备故障、水灾等突发情况时，及时响应抢修工作。负责组织人员对受损的设备进行紧急维修，并采取措施保护大坝和相关设施的安全；\n4.安全管理：负责制定和执行水电站大坝的安全管理制度和操作规程，确保大坝运行的安全性和稳定性。加强对人员的安全培训，提高员工的安全意识和应急处置能力；\n5.水质监测和环保工作：负责对大坝周边水域的水质进行监测和评估，及时发现水质问题，并采取相应措施进行处理和修复，保护大坝周边环境的生态安全；\n6.资料记录和报表编写：及时记录各项运行数据和工作记录，编写相应的报表和文档，并随时向上级汇报工作情况；\n7.完成领导交办的其他工作。"]
[6,"西藏开投金上光伏能源有限公司","机电管理岗",1,"1.年龄：本科24周岁以下，研究生28周岁以下；\n2.学历：全日制本科及以上学历；\n3.专业：机电一体化、电气工程及其自动化、机械设计制造及其自动化等相关专业；\n4.工作经验：有相关岗位实习经验者优先考虑；\n5.职称（职/执业资格）：具有相关专业职称（职/执业资格）优先考虑；\n6.其他要求：具备良好的职业道德，诚实守信，廉洁奉公，保守公司商业机密。工作认真负责，严谨细致，有较强的责任心和敬业精神，能够承受一定工作压力。身体健康，能够适应高原地区工作环境；\n7.特别优秀者可适当放宽条件。","1.工程管理：审核电气工程设计方案、施工方案并监督实施。负责现场电气工程进度管理，监督周计划、月计划的实施;负责现场工程管理，协调参建各方关系。并审核电气工程档案收集、整理；\n2.安全管理：负责工程现场安全及环水保管理，检查、落实现场安全、环保、水保措施；\n3.质量管理：负责现场电气工程质量管理，检查现场工程质量。审核电气工程量和变更立项，并参与工程验收；\n4.设备管理：参与电气设备规划、采购、运维、报废四大模块，参与负责选型与布局设计，电气设备供货谈判及到场验收工作，落实日常巡检与故障处理；\n5.完成领导交办的其他工作。"]
[null,null,"安全管理岗",1,"1.年龄：本科24周岁以下，研究生28周岁以下；\n2.学历：全日制本科及以上学历；\n3.专业：安全工程、环境工程、工程管理等相关专业；\n4.工作经验：有相关岗位实习经验者优先考虑；\n5.职称（职/执业资格）：具有相关专业职称或职（执）业资格者优先考虑；\n6.其他要求：具备良好的职业道德，诚实守信，廉洁奉公，保守公司商业机密。工作认真负责，严谨细致，有较强的责任心和敬业精神，能够承受一定工作压力。身体健康，能够适应高原地区工作环境；\n7.特别优秀者可适当放宽条件。","\n1.安全制度制定：根据安全生产的法律法规和部门规定，完善并实行现场安全管理制度，组织安全检查，及时发现和消除隐患。制定项目安全计划，并落实安全生产措施，指导和督促施工现场各单位落实安全生产措施；\n2.安全宣传：参加项目安全会议及现场安全培训，及时传达安全知识，提高施工方管理人员的安全意识；\n3.安全监督：对施工现场的安全情况进行监督、检查和评估，及时发现和消除危险源，确保施工人员的安全；\n4.其他工作：完善安全报告、记录，改善现场安全和施工质量，确保项目安全运行。关注安全生产的有关新技术、新产品和新政策，及时纠正安全管理中出现的问题；\n5.完成领导交办的其他工作。\n"]
[7,"西藏开投共享服务有限公司","会计核算岗",4,"1.年龄：本科24周岁以下，研究生28周岁以下；\n2.学历：全日制本科及以上学历；\n3.专业：会计学、经济学、财务管理等相关专业；\n4.工作经验：有相关岗位实习经验者优先考虑；\n5.职称（职/执业资格）：具有会计专业初级及以上职称优先考虑；\n6.其他要求：具备良好的财务知识，熟练运用财务软件及各类办公软件；具备良好的沟通协调和执行能力。身体健康，能够适应高原工作环境；\n7.特别优秀者可适当放宽条件。","1.日常报销：负责日常费用报销、员工借还款的单据审核、影像审核及核算处理；\n2.费控工作：负责费控系统账务核对及支付；\n3.核算业务：负责应收应付核算业务，包括收入确认、收款核销、应收账款账龄管理。合同应付确认、合同付款、无合同应付确认、无合同付款、薪酬应付、薪酬付款及其他内部往来等；负责应收应付业务的预提、分摊、固定资产的折旧、无形资产的摊销，期末损益结转等账务处理；　　　　　　　　　　　　　　　　　　　　　　　　　　　　　　　　　　　　　　　　　　　　　　　　　　　　　　　　　　　　　　4.票证工作：负责单位纳税申报、发票开据及当期会计凭证的整理装订；\n5.完成领导交办的其他工作。"]
[8,"西藏开投曲孜卡水电开发有限公司","工程管理岗",1,"1.年龄：本科24周岁以下，研究生28周岁以下；\n2.学历：全日制本科及以上学历；\n3.专业：水利水电建筑工程、土木工程、工程管理等相关专业；\n4.工作经验：有相关岗位实习经验者优先考虑；\n5.职称（职/执业资格）：具有相关专业职称或职（执）业资格者优先考虑；\n6.其他要求：具备良好的职业道德，诚实守信，廉洁奉公，保守公司商业机密。工作认真负责，严谨细致，有较强的责任心和敬业精神，能够承受一定工作压力。身体健康，能够适应高原工作环境；\n7.特别优秀者可适当放宽条件。","1.前期规划与设计：参与项目可行性研究，制定详细设计方案。编制项目预算，确保资金合理分配；\n2.现场管理与协调：进行现场管理，监控施工进度与质量。协调解决技术难题与突发情况，保障施工顺畅；\n3.进度与质量监控评估：定期编写进度与质量评估报告。为项目决策提供数据支持与依据；\n4.其他工作：参与后期验收与交付，确保项目顺利使用。对项目进行总结评估，提供宝贵经验。为项目顺利进行提供技术支持与保障；\n5.完成领导交办的其他相关工作。"]
[null,null,"计划合同岗",1,"1.年龄：本科24周岁以下，研究生28周岁以下；\n2.学历：全日制本科及以上学历；\n3.专业：工程造价、工程管理、土木工程等相关专业；\n4.工作经验：有大型能源、建筑工程或基础设施项目造价工作实习经验者优先考虑；\n5.职称（职/执业资格）：具有相关专业职称或职（执）业资格者优先考虑；\n6.其他要求：具备良好的职业道德，诚实守信，廉洁奉公，保守公司商业机密。工作认真负责，严谨细致，有较强的责任心和敬业精神，能够承受一定工作压力。具有良好的沟通协调能力和团队合作精神，能够与项目团队成员、供应商、审计单位等各方进行有效地沟通和协作。身体健康，能够适应高原工作环境；\n7.特别优秀者可适当放宽条件。","1.合同管理：参与公司各类工程合同的起草、谈判、签订和修订工作，确保合同条款清晰、准确，符合法律法规和公司利益。负责合同的日常管理，建立合同台账，跟踪合同执行情况，及时发现和解决合同履行过程中出现的问题。对合同执行过程中的变更、索赔等事项进行审核和管理，收集和整理相关资料，为合同结算和纠纷处理提供依据；\n2.造价管控：负责工程项目的投资估算、设计概算、施工图预算、招标控制价、投标报价的编制和审核工作，确保造价文件的准确性和合理性。参与工程项目的成本控制，制定成本控制目标和计划，对项目成本进行动态监控和分析，及时发现成本偏差并提出调整措施。负责工程项目的竣工结算工作，审核施工单位提交的结算资料，与施工单位进行结算谈判，完成结算审核报告；\n3.招投标管理：参与工程招标工作，负责编制招标文件中的商务条款和工程量清单，协助确定招标控制价，参与投标工作，负责编制投标文件中的商务部分，进行成本分析和报价策略制定，确保投标报价具有竞争力。负责收集和整理招投标相关资料，建立招投标档案，为后续项目提供参考；\n4.数据分析与报告：收集、整理和分析工程造价相关数据，建立工程造价数据库，为公司项目投资决策、成本控制和预算编制提供数据支持。定期编制工程造价分析报告，对工程项目的造价执行情况进行总结和分析，提出改进建议和措施；\n5.其他工作：协助解决工程项目建设过程中的造价纠纷和争议，提供专业的技术支持和解决方案。参与公司内部的造价培训和技术交流活动，提高团队整体业务水平；\n6.完成领导交办的其他工作。"]
[null,null,"\n机电管理岗",1,"1.年龄：本科24周岁以下，研究生28周岁以下；\n2.学历：全日制本科及以上学历；\n3.专业：机电一体化、电气工程及其自动化、机械设计制造及其自动化等相关专业；\n4.工作经验：有相关岗位实习经验者优先考虑；\n5.职称（职/执业资格）：具有相关专业职称或职（执）业资格者优先考虑；\n6.其他要求：有良好的沟通协调能力和语言文字表达能力，具备良好的职业道德，诚实守信，工作认真负责，严谨细致，有较强的责任心和敬业精神，能够承受一定工作压力。身体健康，能够适应高原地区工作环境；\n7.特别优秀者可适当放宽条件。","1.日常工作：负责文件、制度等资料的管理、归档及传递；负责日常事务的接洽工作；负责部门员工的考勤统计和上报工作；负责部门办公用品的计划编制、领用、保管以及发放等工作； \n2.机电物资统筹工作：负责做好本部门机电、物资等计划、采购、合同、验收、保管、质量、出入库及回收、结算、盘库等管理资料的收集归档和移交公司档案室工作；建立健全各类机电物资台账；\n3.会务协调工作：负责做好部门的会议工作和宣传工作；做好部门报表、简讯等的编制报送工作；做好配合其他部门的相关工作；\n4.完成领导交办的其他工作。"]
[9,"西藏开投曲孜卡水电开发有限公司","安全环保与劳动监察管理岗",1,"1.年龄：本科24周岁以下，研究生28周岁以下；\n2.学历：全日制本科及以上学历；\n3.专业：安全工程、环境工程、劳动与社会保障、法学（劳动法方向）、工商经济管理等相关专业；\n4.工作经验：有相关岗位实习经验者优先考虑；\n5.职称（职/执业资格）：具有相关专业职称或职（执）业资格者优先考虑；\n6.其他要求：具备良好的职业道德，诚实守信，廉洁奉公，保守公司商业机密。工作认真负责，严谨细致，有较强的责任心和敬业精神，能够承受一定工作压力。身体健康，能够适应高原工作环境；\n7.特别优秀者可适当放宽条件。","1.安全管理：制定和完善公司安全生产管理制度、操作规程和应急预案，建立健全安全生产管理体系，确保安全生产工作有章可循。组织开展安全生产培训和教育活动，负责公司生产经营活动中的安全监督检查工作；\n2.环保监督：制定和完善公司环境保护管理制度和措施，监督公司各部门和项目执行环境保护法律法规和政策要求，确保公司运营活动符合环保标准。组织开展环境监测工作，负责公司环保设施的运行管理和维护监督，确保环保设施正常运行，污染物达标排放；参与环保项目的建设和改造工作，从环保角度提出建议和意见；组织开展环保宣传教育活动。负责与环保部门的沟通协调工作，及时了解环保政策动态，按时完成环保相关的申报、审批等工作，积极应对环保检查和执法活动；\n3.劳动监察：宣传贯彻劳动保障法律法规，监督公司各部门遵守劳动用工、劳动合同、工资支付、社会保险等方面的法律法规，维护员工的合法权益。负责公司劳动监察相关资料的收集、整理和归档工作，建立健全劳动监察档案，为公司的劳动管理和决策提供数据支持；\n4.其他工作：协助公司相关部门开展项目的招投标工作，提供安全环保与劳动监察方面的技术支持和咨询，确保投标项目在相关方面符合要求；\n5.完成领导交办的其他工作。"]
[10,"西藏开投果多水电有限公司","生产运维岗",5,"1.年龄：24岁周岁以下；\n2.学历：全日制专科及以上学历；\n3.专业：机电一体化、电气工程及其自动化、机械设计制造及其自动化等相关专业；\n4.工作经验：有相关岗位实习经验者优先考虑；\n5.职称（职/执业资格）：具有相关职（执）业资格者优先考虑；\n6.其他要求：具备良好的职业道德，诚实守信，廉洁奉公，保守公司商业机密，工作认真负责，严谨细致，有较强的责任心和敬业精神，能够承受一定工作压力。身体健康，能够适应高原工作环境；\n7.特别优秀者可适当放宽条件，非上述专业人员需本科以上学历。","1.设备运行监控与操作：实时监视发电机、变压器、断路器、水泵等各类电气设备与机械设备的运行状态，严格按照电厂运行规程进行操作，确保设备运行参数在正常范围内。密切关注设备的温度、压力、电流、电压等关键参数。准确执行调度指令，完成设备的启停操作、倒闸操作等任务，操作过程中严格执行操作票制度，确保操作步骤准确无误，防止误操作引发安全事故与设备损坏；熟练掌握设备的应急停运操作流程，在设备发生严重故障或危及人身安全等紧急情况下，能够迅速、果断地采取应急停运措施，保障人员与设备安全；\n2.设备巡检与维护：定期对电厂设备进行全面巡检，按照巡检路线与巡检项目要求，认真检查设备的外观、运行声音、振动情况、连接部位紧固程度等，及时发现设备潜在问题。配合检修人员完成设备的定期试验、轮换工作以及缺陷消除工作，在试验与检修过程中，提供必要的协助，确保试验与检修工作顺利进行；\n3.数据记录与分析：认真填写设备运行记录，详细记录设备的运行参数、启停时间、操作内容、异常情况及处理结果等信息，确保记录数据真实、准确、完整，为设备运行分析与故障排查提供可靠依据。对设备运行数据进行定期分析，通过对比历史数据、不同设备间的数据等，判断设备运行趋势，及时发现设备潜在的性能下降、故障隐患等问题，并提出合理化建议；\n4.安全管理：严格遵守电厂的安全规章制度与操作规程，落实岗位安全责任，正确佩戴和使用个人防护用品，确保自身工作安全。积极参与电厂组织的安全培训、应急演练等活动，提高自身安全意识与应急处置能力，在遇到突发安全事件时，能够迅速响应并正确应对；\n5.部门协助：与检修部门、调度部门、运行部门等保持密切沟通协作，及时反馈设备运行情况、故障信息等，共同解决电厂运行过程中出现的各类问题，保障电厂的安全稳定运行；\n6.完成领导交办的其他工作。","人员储备"]
[11,"西藏开投那曲河水电开发投资有限公司","安全环保与劳动监察管理岗",1,"1.年龄：本科24周岁以下，研究生28周岁以下；\n2.学历：全日制本科及以上学历；\n3.专业：安全工程、环境工程、劳动与社会保障、法学（劳动法方向）等相关专业；\n4.工作经验：有相关岗位实习经验者优先考虑；\n5.职称（职/执业资格）：具有相关专业职称或职（执）业资格者优先考虑；\n6.其他要求：具备良好的职业道德，诚实守信，廉洁奉公，保守公司商业机密。工作认真负责，严谨细致，有较强的责任心和敬业精神，能够承受一定工作压力。身体健康，能够适应高原工作环境；\n7.特别优秀者可适当放宽条件。","1.安全管理：制定和完善公司安全生产管理制度、操作规程和应急预案，建立健全安全生产管理体系，确保安全生产工作有章可循。组织开展安全生产培训和教育活动，负责公司生产经营活动中的安全监督检查工作；\n2.环保监督：制定和完善公司环境保护管理制度和措施，监督公司各部门和项目执行环境保护法律法规和政策要求，确保公司运营活动符合环保标准。组织开展环境监测工作，负责公司环保设施的运行管理和维护监督，确保环保设施正常运行，污染物达标排放；参与环保项目的建设和改造工作，从环保角度提出建议和意见；组织开展环保宣传教育活动。负责与环保部门的沟通协调工作，及时了解环保政策动态，按时完成环保相关的申报、审批等工作，积极应对环保检查和执法活动；\n3.劳动监察：宣传贯彻劳动保障法律法规，监督公司各部门遵守劳动用工、劳动合同、工资支付、社会保险等方面的法律法规，维护员工的合法权益。负责公司劳动监察相关资料的收集、整理和归档工作，建立健全劳动监察档案，为公司的劳动管理和决策提供数据支持；\n4.其他工作：协助公司相关部门开展项目的招投标工作，提供安全环保与劳动监察方面的技术支持和咨询，确保投标项目在相关方面符合要求；\n5.完成领导交办的其他工作。"]
[null,null,"工程管理岗\n（机电管理方向）",1,"1.年龄：本科24周岁以下，研究生28周岁以下；\n2.学历：全日制本科及以上学历；\n3.专业：电气工程及其自动化、机电一体化、新能源科学与工程等相关专业；\n4.工作经验：有相关岗位实习经验者优先考虑；\n5.职称（职/执业资格）：具有相关专业职称或职（执）业资格者优先考虑；\n6.其他要求：具备良好的职业道德，诚实守信，廉洁奉公，保守公司商业机密。工作认真负责，严谨细致，有较强的责任心和敬业精神，能够承受一定工作压力。身体健康，能够适应高原工作环境；\n7.特别优秀者可适当放宽条件。","1.设计与规划：参与电气化工程的设计和规划，确保设计方案的科学性和可行性；                                               \n2.设备采购与管理：对电气设备进行选型和采购，确保设备的质量和性能满足工程需求；\n3.系统安装与维护：负责电气系统的安装、调试和维护工作，确保系统的稳定运行；\n4.其他工作：参与工程项目的进度管理和质量控制，确保工程按期完成。进行技术研究和创新，提升电气化工程的技术水平，为工程建设项目提供技术支持和保障；\n5.完成领导交办的其他工作。"]
[null,null,"计划合同岗",1,"1.年龄：本科24周岁以下，研究生28周岁以下；\n2.学历：全日制本科及以上学历；\n3.专业：工程造价、工程管理、土木工程等相关专业；\n4.工作经验：有大型能源、建筑工程或基础设施项目造价工作实习经验者优先考虑；\n5.职称（职/执业资格）：具有相关专业职称或职（执）业资格者优先考虑；\n6.其他要求：具备良好的职业道德，诚实守信，廉洁奉公，保守公司商业机密。工作认真负责，严谨细致，有较强的责任心和敬业精神，能够承受一定工作压力。具有良好的沟通协调能力和团队合作精神，能够与项目团队成员、供应商、审计单位等各方进行有效地沟通和协作。身体健康，能够适应高原工作环境；\n7.特别优秀者可适当放宽条件。","1.合同管理：参与公司各类工程合同的起草、谈判、签订和修订工作，确保合同条款清晰、准确，符合法律法规和公司利益。负责合同的日常管理，建立合同台账，跟踪合同执行情况，及时发现和解决合同履行过程中出现的问题。对合同执行过程中的变更、索赔等事项进行审核和管理，收集和整理相关资料，为合同结算和纠纷处理提供依据；\n2.造价管控：负责工程项目的投资估算、设计概算、施工图预算、招标控制价、投标报价的编制和审核工作，确保造价文件的准确性和合理性。参与工程项目的成本控制，制定成本控制目标和计划，对项目成本进行动态监控和分析，及时发现成本偏差并提出调整措施。负责工程项目的竣工结算工作，审核施工单位提交的结算资料，与施工单位进行结算谈判，完成结算审核报告；\n3.招投标管理：参与工程招标工作，负责编制招标文件中的商务条款和工程量清单，协助确定招标控制价，参与投标工作，负责编制投标文件中的商务部分，进行成本分析和报价策略制定，确保投标报价具有竞争力。负责收集和整理招投标相关资料，建立招投标档案，为后续项目提供参考；\n4.数据分析与报告：收集、整理和分析工程造价相关数据，建立工程造价数据库，为公司项目投资决策、成本控制和预算编制提供数据支持。定期编制工程造价分析报告，对工程项目的造价执行情况进行总结和分析，提出改进建议和措施；\n5.其他工作：协助解决工程项目建设过程中的造价纠纷和争议，提供专业的技术支持和解决方案。参与公司内部的造价培训和技术交流活动，提高团队整体业务水平；\n6.完成领导交办的其他工作。",null,null,"】"]
[null,null,"火电运维岗",2,"1.年龄：24周岁以下；\n2.学历：全日制专科及以上学历；\n3.专业：热能与动力工程、能源与动力工程、机械工程、自动化（热工控制）等相关专业；\n4.工作经验：有相关岗位实习经验者优先考虑；\n5.职称（职/执业资格）：具有相关职（执）业资格者优先考虑；\n6.其他要求：具备良好的职业道德，诚实守信，廉洁奉公，保守公司商业机密，工作认真负责，严谨细致，有较强的责任心和敬业精神，能够承受一定工作压力。身体健康，能够适应高原工作环境；\n7.特别优秀者可适当放宽条件，非上述专业人员需本科以上学历。","1.设备操作与维护能力：能独立完成火电机组启停机操作、日常运行参数监控，并根据参数异常判断设备状态；掌握常见设备的检修工艺，能进行常规维护及故障排查；练使用专业工具，具备设备状态评估能力；\n2.分析与应急处理：能分析火电厂汽水系统、燃烧系统、电气系统的流程图，理解各设备间的联动逻辑，具备系统优化的基础思路；面对突发故障，能依据应急预案快速响应，采取隔离、停机等措施，并配合团队完成故障修复；\n3.数字化工具应用：绘制简单设备图纸，掌握电厂运维管理系统的操作，能通过数据分析软件，形成运维报告；了解智能运维技术的基本原理，具备数字化工具的学习与应用能力；\n4.安全管理：严格遵守电厂的安全规章制度与操作规程，落实岗位安全责任，正确佩戴和使用个人防护用品，确保自身工作安全。积极参与电厂组织的安全培训、应急演练等活动，提高自身安全意识与应急处置能力，在遇到突发安全事件时，能够迅速响应并正确应对；\n5.部门协助：与检修部门、调度部门、运行部门等保持密切沟通协作，及时反馈设备运行情况、故障信息等，共同解决电厂运行过程中出现的各类问题，保障电厂的安全稳定运行；\n6.完成领导交办的其他工作。"]
[12,"集团公司系统下属各单位","计划合同岗",1,"1.年龄：本科24周岁以下，研究生28周岁以下；\n2.学历：全日制本科及以上学历；\n3.专业：工程造价、工程管理、土木工程等相关专业；\n4.工作经验：有大型能源、建筑工程或基础设施项目造价工作实习经验者优先考虑；\n5.职称（职/执业资格）：具有相关专业职称或职（执）业资格者优先考虑；\n6.其他要求：具备良好的职业道德，诚实守信，廉洁奉公，保守公司商业机密。工作认真负责，严谨细致，有较强的责任心和敬业精神，能够承受一定工作压力。具有良好的沟通协调能力和团队合作精神，能够与项目团队成员、供应商、审计单位等各方进行有效地沟通和协作。身体健康，能够适应高原工作环境；\n7.特别优秀者可适当放宽条件。","1.合同管理：参与公司各类工程合同的起草、谈判、签订和修订工作，确保合同条款清晰、准确，符合法律法规和公司利益。负责合同的日常管理，建立合同台账，跟踪合同执行情况，及时发现和解决合同履行过程中出现的问题。对合同执行过程中的变更、索赔等事项进行审核和管理，收集和整理相关资料，为合同结算和纠纷处理提供依据；\n2.造价管控：负责工程项目的投资估算、设计概算、施工图预算、招标控制价、投标报价的编制和审核工作，确保造价文件的准确性和合理性。参与工程项目的成本控制，制定成本控制目标和计划，对项目成本进行动态监控和分析，及时发现成本偏差并提出调整措施。负责工程项目的竣工结算工作，审核施工单位提交的结算资料，与施工单位进行结算谈判，完成结算审核报告；\n3.招投标管理：参与工程招标工作，负责编制招标文件中的商务条款和工程量清单，协助确定招标控制价，参与投标工作，负责编制投标文件中的商务部分，进行成本分析和报价策略制定，确保投标报价具有竞争力。负责收集和整理招投标相关资料，建立招投标档案，为后续项目提供参考；\n4.数据分析与报告：收集、整理和分析工程造价相关数据，建立工程造价数据库，为公司项目投资决策、成本控制和预算编制提供数据支持。定期编制工程造价分析报告，对工程项目的造价执行情况进行总结和分析，提出改进建议和措施；\n5.其他工作：协助解决工程项目建设过程中的造价纠纷和争议，提供专业的技术支持和解决方案。参与公司内部的造价培训和技术交流活动，提高团队整体业务水平；\n6.完成领导交办的其他工作。"]
[null,null,"安全环保与劳动监察管理岗",1,"1.年龄：本科24周岁以下，研究生28周岁以下；\n2.学历：全日制本科及以上学历；\n3.专业：安全工程、环境工程、劳动与社会保障、法学（劳动法方向）等相关专业；\n4.工作经验：有相关岗位实习经验者优先考虑；\n5.职称（职/执业资格）：具有相关专业职称或职（执）业资格者优先考虑；\n6.其他要求：具备良好的职业道德，诚实守信，廉洁奉公，保守公司商业机密。工作认真负责，严谨细致，有较强的责任心和敬业精神，能够承受一定工作压力。身体健康，能够适应高原工作环境；\n7.特别优秀者可适当放宽条件。","1.安全管理：制定和完善公司安全生产管理制度、操作规程和应急预案，建立健全安全生产管理体系，确保安全生产工作有章可循。组织开展安全生产培训和教育活动，负责公司生产经营活动中的安全监督检查工作；\n2.环保监督：制定和完善公司环境保护管理制度和措施，监督公司各部门和项目执行环境保护法律法规和政策要求，确保公司运营活动符合环保标准。组织开展环境监测工作，负责公司环保设施的运行管理和维护监督，确保环保设施正常运行，污染物达标排放；参与环保项目的建设和改造工作，从环保角度提出建议和意见；组织开展环保宣传教育活动。负责与环保部门的沟通协调工作，及时了解环保政策动态，按时完成环保相关的申报、审批等工作，积极应对环保检查和执法活动；\n3.劳动监察：宣传贯彻劳动保障法律法规，监督公司各部门遵守劳动用工、劳动合同、工资支付、社会保险等方面的法律法规，维护员工的合法权益。负责公司劳动监察相关资料的收集、整理和归档工作，建立健全劳动监察档案，为公司的劳动管理和决策提供数据支持；\n4.其他工作：协助公司相关部门开展项目的招投标工作，提供安全环保与劳动监察方面的技术支持和咨询，确保投标项目在相关方面符合要求；\n5.完成领导交办的其他工作。"]
[null,null,"工程管理岗",2,"1.年龄：本科24周岁以下，研究生28周岁以下；\n2.学历：全日制本科及以上学历；\n3.专业：水利水电建筑工程、土木工程、工程管理等相关专业；\n4.工作经验：有相关岗位实习经验者优先考虑；\n5.职称（职/执业资格）：具有相关专业职称或职（执）业资格者优先考虑；\n6.其他要求：具备良好的职业道德，诚实守信，廉洁奉公，保守公司商业机密。工作认真负责，严谨细致，有较强的责任心和敬业精神，能够承受一定工作压力。身体健康，能够适应高原工作环境；\n7.特别优秀者可适当放宽条件。","1.前期规划与设计：参与项目可行性研究，制定详细设计方案。编制项目预算，确保资金合理分配；\n2.现场管理与协调：进行现场管理，监控施工进度与质量。协调解决技术难题与突发情况，保障施工顺畅；\n3.进度与质量监控评估：定期编写进度与质量评估报告。为项目决策提供数据支持与依据；\n4.其他工作：参与后期验收与交付，确保项目顺利使用。对项目进行总结评估，提供宝贵经验。为项目顺利进行提供技术支持与保障；\n5.完成领导交办的其他相关工作。"]
[null,null,"综合管理岗",5,"1.年龄要求：本科24周岁以下，研究生28周岁以下；​\n2.学历要求：全日制本科及以上学历；​\n专业要求：行政管理、工商管理、公共管理、中国语言文学类（如汉语言文学、秘书学）、新闻传播学类（如新闻学、广告学）、法学类、人力资源管理等相关专业；​\n3.职称（职/执业资格）要求：无硬性要求，在校期间取得企业人力资源管理师（四级/三级）、初级经济师、计算机二级及以上证书者优先，通过大学英语六级（或同等外语水平）者优先；​\n4.实践经历要求：在校期间有以下经历之一者优先：有企业行政部、人力资源部、学校行政科室、事业单位办公室等相关实习经历（累计时长 3 个月及以上）；​担任过校级 / 院级学生干部（如学生会部长及以上、班级班长/团支书），或主导 /参与过校园大型活动（如迎新晚会、学术论坛）的组织协调工作，有校园新闻稿、活动策划案、调研报告等文书撰写经历，或获得过校级及以上奖学金、“优秀学生干部”“三好学生” 等荣誉；​\n5.能力与素质要求：熟练使用 Office（Word、Excel、PPT）等办公软件，具备基础的公文写作、数据整理及图表制作能力；了解基本行政办公流程、企业基础管理制度，逻辑清晰、沟通表达流畅，有较强的责任心和团队协作意识；学习能力强，能快速适应职场环境，接受岗位相关培训，保密意识强，能承受一定的工作压力，身体健康，能够适应在地区工作环境（如高原环境，具体以集团实际情况为准）。中共党员优先考虑；\n7.特别优秀者可适当放宽条件。","1.行政事务辅助：协助开展日常行政工作，如办公用品申领登记与分发、办公设备（打印机、投影仪）基础故障反馈、办公区域环境卫生监督等，配合保障办公秩序。助工作；配合统筹后勤保障基础事务，如员工通勤车班次统计、节假日福利发放登记等；\n2.文书与档案辅助：协助撰写公司简单文书（如通知、活动简报初稿），配合完成公文的校对、排版及印发前的资料核对工作。协助整理公司各类档案（如员工入职材料、行政类合同复印件、活动照片视频），按规范完成分类、编号、扫描及归档，确保档案存放有序。协助管理公章使用登记薄，按流程记录公章使用事由、申请人及审批情况，配合做好印章使用合规检查。​\n3.沟通协调支持：协助在公司内部部门间传递基础信息（如通知、报表），配合解决简单的跨部门协作问题（如会议时间协调、材料交接）。协助接待来访的校园合作单位、应届生及家属，做好身份登记、引导至指定区域，并及时反馈对接人；配合记录简单的信访咨询（如应届生入职疑问），整理诉求后转至相关部门，跟踪反馈结果并同步记录；\n4.制度与文化辅助：协助收集公司行政管理制度执行中的基础问题（如流程繁琐反馈），整理后提交至部门负责人。协助开展企业文化活动（如员工生日会、青年员工座谈会），负责活动宣传海报设计（基础版）、参与人员统计、活动现场物料分发等。配合整理公司品牌宣传素材（如员工工作剪影、活动照片），协助维护内部宣传平台（如企业微信公众号）的基础运营；​\n5.党建与日常事务：协助落实公司党委的基础党建工作，如党员学习资料打印、主题党日活动签到记录、党建档案的初步整理。负责部门日常数据统计（如办公用品消耗台账、会议次数统计）、基础报表（如月度行政工作小结）编制，以及各类资料的电子化归档。协助开展人力资源辅助工作，如应届生简历初步筛选、入职体检通知传达、新员工培训签到表整理；​\n6.完成领导交办的其他综合性辅助工作（如临时文件传递、跨部门材料领取），配合参与公司重大项目的后勤支持工作。​"]
["合计",null,"/",35,"/","/"]